Cogmind - Beta 16.1 @@@ ROGUE MODE // 2026.03.18 @ 09:41:46 Player: grantinator Result: Destroyed by G-34 Mercenary with Small Laser Performance ------------- Evolutions (1) 500 Regions Visited (2) 400 Robots Destroyed (26) 130 Value Destroyed (626) 626 Prototype IDs (0) 0 Alien Tech Used (0) 0 Bonus (0) 0 TOTAL SCORE: 1656 Bonus ------- None Cogmind --------- Core Integrity 0/400 Matter 254/300 Energy 100/100 System Corruption 0% Temperature Cool (6) Movement Core (350) Ox6 Location -9/Materials Parts ------- > --- POWER (1) -------- (None) > --- PROPULSION (3) --- (None) > --- UTILITY (3) ------ Large Storage Unit Visual Processing Unit > --- WEAPON (2) ------- (None) > --- INVENTORY (15) --- Light Treads Light Treads Light Treads Light Treads Cesium-ion Thruster Cesium-ion Thruster Cesium-ion Thruster Cesium-ion Thruster Light Armor Plating Heavy EM Pulse Gun Medium Laser Small Laser Assault Rifle Mini Grenade Launcher Datajack Peak State ------------ > --- POWER ------------ Light Ion Engine > --- PROPULSION ------- Light Treads Light Treads Light Treads > --- UTILITY ---------- Large Storage Unit Trap Scanner Visual Processing Unit > --- WEAPON ----------- Heavy Particle Cannon Heavy Particle Cannon > --- INVENTORY -------- Light Treads Light Treads Light Treads Light Treads Cesium-ion Thruster Cesium-ion Thruster Cesium-ion Thruster Cesium-ion Thruster Light Armor Plating Heavy EM Pulse Gun Medium Laser Small Laser Assault Rifle Mini Grenade Launcher Datajack [Rating: 18] Favorites ----------- Power Light Ion Engine Engine Light Ion Engine Propulsion Light Treads Treads Light Treads Utility Visual Processing Unit Device Trap Scanner Storage Medium Storage Unit Processor Visual Processing Unit Weapon Assault Rifle Energy Gun Medium Laser Energy Cannon Heavy Particle Cannon Ballistic Gun Assault Rifle Launcher Grenade Launcher Special Melee Weapon Datajack Build | -11 -10 -9 ------- Run | Yrd Mat Mat Slots Evolved 2 | . . 2 Power . | . . . Propulsion 1 | . . 1 Utility 1 | . . 1 Weapon . | . . . Parts Attached 25 | 6 9 10 Power 2 | 1 1 . Engine 2 | 1 1 . Core . | . . . Reactor . | . . . Propulsion 7 | 2 2 3 Treads 7 | 2 2 3 Leg . | . . . Wheel . | . . . Hover . | . . . Flight . | . . . Utility 7 | 1 3 3 Device 3 | . 1 2 Storage 3 | 1 1 1 Processor 1 | . 1 . Hackware . | . . . Protection . | . . . Artifact . | . . . Weapon 9 | 2 3 4 Energy Gun 2 | 1 . 1 Energy Cannon 3 | . 1 2 Ballistic Gun 1 | 1 . . Ballistic Cannon . | . . . Launcher 2 | . 1 1 Special Weapon . | . . . Impact Weapon . | . . . Slashing Weapon . | . . . Piercing Weapon . | . . . Special Melee Weapon 1 | . 1 . Unidentified Prototypes . | . . . Parts Lost 9 | . 1 8 Power 2 | . 1 1 Propulsion 4 | . . 4 Utility 1 | . . 1 Weapon 2 | . . 2 Highest Loss Streak 4 | . 1 4 To Critical Strikes . | . . . Average Backups 9 | 2 8 12 Power . | . . . Propulsion 4 | 1 3 6 Utility . | . . . Weapon 3 | . 2 4 Tool/Special . | . . . Unused Backups 9 | . 2 7 Power . | . . . Propulsion 7 | . 2 5 Utility 1 | . . 1 Weapon 1 | . . 1 Tool/Special . | . . . Average Slot Usage (%) 94 | . 97 89 Engine 11 | . 14 8 Treads 27 | . 27 28 Device 5 | . 2 9 Storage 12 | . 14 11 Processor 10 | . 10 11 Energy Gun 6 | . 6 5 Energy Cannon 5 | . 3 7 Ballistic Gun 6 | . 10 1 Launcher 4 | . 4 3 Special Melee Weapon 1 | . 2 1 Peak Build Rating 18 | 6 9 18 Average Rating 9 | 5 7 13 On Entrance 4 | . 6 8 Avg Prop Armor Cover (%) . | . . . Naked Turns . | . . . Heaviest Build 37 | 12 19 37 Greatest Support 60 | 40 40 60 Greatest Overweight (x) . | . . . Average Overweight (x) . | . . . Largest Inventory Capacity 15 | 8 10 15 Average Capacity 11 | 7 9 14 Most Carried 15 | 4 10 15 Average Carried 9 | 2 8 12 Final Capacity 15 | 8 10 15 Final Carried 15 | 4 9 15 Class Distribution -------------------- 100% | Mutant Dominant Class ---------------- Mutant | -10/Materials Mutant | -9/Materials Resources | -11 -10 -9 ----------- Run | Yrd Mat Mat Matter Collected 824 | 222 459 143 Remotely . | . . . Salvage Created 690 | . 415 275 Parts 45 | . 22 23 Haulers Intercepted 3 | . 1 2 Recyclers Shooed 2 | . 1 1 Parts Field Recycled . | . . . Retrieved Matter . | . . . Parts Self-Destructed . | . . . Prevented . | . . . Parts Restored . | . . . Kills | -11 -10 -9 ------- Run | Yrd Mat Mat Combat Hostiles Destroyed 19 | . 12 7 Guns 6 | . 6 . Cannons 7 | . 2 5 AOE 6 | . 4 2 Classes Destroyed 8 | . 7 1 Worker 2 | . 2 . Builder 1 | . 1 . Hauler 3 | . 1 2 Watcher 1 | . 1 . Swarmer 7 | . 3 4 Grunt 9 | . 7 2 Sentry 1 | . . 1 Subdweller 2 | . 2 . Best Kill Streak 6 | . 6 3 Combat Bots Only 5 | . 5 3 Max Kills in Single Turn 2 | . 2 1 Gunslinging . | . . . Exploded 1 | . 1 1 Melee . | . . . Uniques/NPCs Destroyed . | . . . Combat | -11 -10 -9 -------- Run | Yrd Mat Mat Hostile Shots Fired 195 | . 47 148 Missed 37 | . 9 28 Hits 158 | . 38 120 Projectile 158 | . 38 120 Critical Strikes 1 | . 1 . Damage Taken 1899 | . 538 1361 Core 444 | . 41 403 Absorbed by Shields . | . . . Regen/Repaired (Parts) 159 | . 159 . Core Remaining (%) 91 | 100 83 . Volleys Fired 51 | 2 31 18 Largest 2 | 2 2 2 Hottest 150 | 70 80 150 Shots Fired 94 | 3 59 32 Gun 56 | 3 44 9 Cannon 27 | . 6 21 Launcher 11 | . 9 2 Special . | . . . Kinetic 39 | 2 30 7 Thermal 42 | 1 20 21 Explosive 11 | . 9 2 Electromagnetic 2 | . . 2 Robot Hit Streak 25 | 1 25 4 Robot Miss Streak 3 | 2 3 2 Penetration Max . | . . . Secondary Targets . | . . . Shots Hit Robots 70 | 1 50 19 Core Hits 35 | . 26 9 Critical Kills . | . . . Critical Parts Destroyed . | . . . Critical Strikes 1 | . 1 . Burn 1 | . 1 . Melee Attacks 5 | . 3 2 Impact . | . . . Slashing . | . . . Piercing . | . . . Sneak Attacks 2 | . . 2 Combat Hostiles . | . . . Follow-up Attacks . | . . . Damage Inflicted 1533 | 13 970 550 Guns 491 | 13 428 50 Cannons 390 | . 105 285 Explosions 636 | . 434 202 Melee . | . . . Ramming 16 | . 3 13 Kinetic 341 | 13 290 38 Thermal 635 | . 243 392 Explosive 529 | . 434 95 Electromagnetic 12 | . . 12 Impact . | . . . Slashing . | . . . Piercing . | . . . Highest Corruption 1 | . 1 . Average Corruption 1 | . 1 . Corruption Purged . | . . . Corruption Blocked . | . . . Effects 6 | . 6 . Message Errors 1 | . 1 . Matter Fused 1 | . 1 . Heat Flow Errors 1 | . 1 . Energy Discharges 2 | . 2 . Misfires 1 | . 1 . Overload Shots . | . . . Overflow Damage 69 | . 9 60 Projectiles . | . . . Explosions 69 | . 9 60 Melee . | . . . Knockbacks . | . . . Impact . | . . . Kinetic . | . . . Secondary . | . . . Self-Inflicted Damage 167 | . 12 155 Shots 4 | . 1 3 Rammed 3 | . 1 2 Targets Rammed 4 | . 2 2 Kicked . | . . . Crushed 1 | . 1 . Highest Temperature 304 | 9 162 304 Average Temperature 77 | 6 50 115 Received Heat Transfer 750 | . 222 528 Effects 1 | . . 1 Interference 1 | . . 1 Siege Activations . | . . . Martial Activations . | . . . Shielding Activations . | . . . Robots Disrupted . | . . . Combat Hostiles . | . . . Robots Corrupted . | . . . Combat Hostiles . | . . . Parts Fried . | . . . Impact Corruptions . | . . . Robots Melted . | . . . Combat Hostiles . | . . . Parts Melted 4 | . 3 1 Heat Transferred 1247 | . 703 544 Parts Sabotaged . | . . . Parts Stolen . | . . . Parts Stripped . | . . . Power Chain Reactions 1 | . . 1 Alert | -11 -10 -9 ------- Run | Yrd Mat Mat Maximum Alert Level . | . . . Low Security (%) 100 | 100 100 100 Level 1 . | . . . Level 2 . | . . . Level 3 . | . . . Level 4 . | . . . Level 5 . | . . . High Security . | . . . Max Security . | . . . Peak Influence 144 | . 144 130 Initial . | . . . Average 37 | . 46 27 Influence Increases 771 | . 432 339 Destroy 0b10 Robot/C 340 | . 200 140 Destroy 0b10 Robot/NC 35 | . 25 10 Destroy Leader 68 | . 54 14 Trap Triggered on 0b10 10 | . . 10 Successful Hack 12 | . 12 . Disable Machine 105 | . 60 45 Destroy Structure 96 | . 66 30 Lose Combat Pursuer 105 | . 15 90 Influence Decreases 763 | . 432 331 Time Decay 673 | . 422 251 Lost Part 90 | . 10 80 Squads Dispatched 3 | . 2 1 Investigation 3 | . 2 1 Extermination . | . . . Reinforcement . | . . . Assault . | . . . Garrison . | . . . Intercept . | . . . Searches Triggered . | . . . Construction Impeded . | . . . Haulers Reinforced . | . . . Active Scanning Responses . | . . . Cargo Convoy Interrupts . | . . . Stealth | -11 -10 -9 --------- Run | Yrd Mat Mat Distress Signals 2 | . 2 . Communications Jammed . | . . . Distress Signals . | . . . Times Spotted 38 | . 20 18 Peak Tracking Total 6 | . 5 6 Tactical Retreats 4 | . 1 3 ECM-based Alert Blocks 2 | . . 2 Traps | -11 -10 -9 ------- Run | Yrd Mat Mat Traps Triggered 5 | . 5 . Indirectly . | . . . Trap Hack Attempts 61 | . . 61 Triggered . | . . . Disarmed . | . . . Reprogrammed 4 | . . 4 Reused 1 | . . 1 Traps Extracted . | . . . Installed . | . . . Triggered 1 | . . 1 Machines | -11 -10 -9 ---------- Run | Yrd Mat Mat Machines Disabled 7 | . 4 3 Max in Single Turn 3 | . 2 3 Machines Repaired . | . . . Machines Dismantled . | . . . Machines Sabotaged . | . . . Overloaded Fab Kills . | . . . Hacking | -11 -10 -9 --------- Run | Yrd Mat Mat Machines Accessed 7 | . 5 2 Terminals 4 | . 3 1 Fabricators . | . . . Repair Stations 1 | . 1 . Recycling Units 1 | . 1 . Scanalyzers 1 | . . 1 Garrison Access . | . . . Total Hacks 24 | . 17 7 Successful 15 | . 11 4 Failed 8 | . 6 2 Catastrophic . | . . . Database Lockouts 1 | . . 1 Manual 4 | . 4 . Terminals 11 | . 10 1 Fabricators . | . . . Repair Stations 6 | . 6 . Recycling Units 1 | . 1 . Scanalyzers 6 | . . 6 Garrison Access . | . . . Terminal Hacks 5 | . 4 1 Record 2 | . 2 . Emergency Access Points 1 | . 1 . Alert Level 1 | . 1 . Zone Layout 1 | . . 1 Fabricator Hacks . | . . . Repair Station Hacks 6 | . 6 . Scan Component 3 | . 3 . Repair 3 | . 3 . Recycling Unit Hacks 1 | . 1 . Report Inventory 1 | . 1 . Scanalyzer 3 | . . 3 Insert Component 1 | . . 1 Analyze 1 | . . 1 Retrieve Study 1 | . . 1 Garrison Access Hacks . | . . . Unauthorized Hacks . | . . . Terminals . | . . . Fabricators . | . . . Repair Stations . | . . . Recycling Units . | . . . Scanalyzers . | . . . Garrison Access . | . . . Data Cores Recovered . | . . . Used . | . . . Hacking Detections 6 | . 4 2 Full Trace Events 3 | . 2 1 Feedback Events 1 | . 1 . Corruption 1 | . 1 . Feedback Blocked . | . . . Robot Schematics Acquired . | . . . Robots Built . | . . . Authchips . | . . . Time . | . . . Total Robot Build Rating . | . . . Part Schematics Acquired 1 | . . 1 Parts Built . | . . . Authchips . | . . . Time . | . . . Total Part Build Rating . | . . . Part Studies Acquired 1 | . . 1 Parts Repaired 3 | . 3 . Time 78 | . 78 . Parts Recycled . | . . . Recycled Matter . | . . . Retrieved Matter . | . . . Retrieved Components . | . . . Parts Scanalyzed 1 | . . 1 Part Schematics Acquired 1 | . . 1 Parts Damaged . | . . . Bothacking | -11 -10 -9 ------------ Run | Yrd Mat Mat Used RIF Installer . | . . . Robots Hacked 2 | . . 2 Non-combat 2 | . . 2 Combat . | . . . Robot Hacks Applied 2 | . . 2 no_distress 2 | . . 2 Relay Couplers Released . | . . . Fabnet Peak Effective % . | . . . Robots Rewired . | . . . Allies Hacked . | . . . Hacks Repelled . | . . . Allies | -11 -10 -9 -------- Run | Yrd Mat Mat Total Allies . | . . . Largest Group . | . . . Highest-Rated Group . | . . . Highest-Rated Ally . | . . . Total Orders . | . . . Ally Attacks . | . . . Total Damage . | . . . Kills . | . . . Allies Corrupted . | . . . Allies Melted . | . . . Intel | -11 -10 -9 ------- Run | Yrd Mat Mat Active Infowar (turns) 2275 | . 1322 953 Optics 2035 | . 1082 953 Terrain 240 | . 240 . Traps 524 | . . 524 ECM 240 | . . 240 Robot Analysis Total . | . . . Derelict Logs Recovered . | . . . Drone Launches . | . . . Drone Recoveries . | . . . Exploration | -11 -10 -9 ------------- Run | Yrd Mat Mat Turns Passed 2518 | 137 1428 953 Spaces Moved 942 | 80 624 238 Core 8 | 8 . . Treads 934 | 72 624 238 Legs . | . . . Wheels . | . . . Hover . | . . . Flight . | . . . Fastest Speed 50 | 50 160 160 Average Speed 159 | 149 160 160 Slowest Speed 160 | 160 160 160 Overloaded Moves . | . . . Propulsion Burnouts . | . . . Robots Hopped . | . . . Potential Cave-ins . | . . . Cave-ins Triggered . | . . . Exploration Rate (%) 41 | 3 92 29 Regions Visited 2 Branch Regions . Pre-discovered Areas . | . . . Known Exits Taken . | . . . Unknown Exits Taken 2 | 1 1 . Scrap Searched . | . . . Spaces Dug . | . . . Terrain Destroyed 94 | . 62 32 Melee . | . . . Projectile 7 | . . 7 AOE 87 | . 62 25 Terrain Rammed . | . . . Walls Destroyed . | . . . Machines Disabled . | . . . Actions | -11 -10 -9 --------- Run | Yrd Mat Mat Total 1847 | 92 984 771 Wait 705 | . 288 417 Move 940 | 79 623 238 Hop . | . . . Pick Up 22 | 5 7 10 Fast Attach 15 | 5 9 1 Attach 6 | 1 1 4 Detach . | . . . Swap 28 | . 15 13 Drop 10 | . 5 5 Fire 51 | 2 31 18 Melee 5 | . 3 2 Ram . | . . . Kick . | . . . Crush 4 | . 2 2 Escape Stasis . | . . . Rewire . | . . . Trap 61 | . . 61 Miscellaneous . | . . . Route ------- -11/Scrapyard -10/Materials (discovered 3 exits: *Mat x2 / [*Min]) -9/Materials (discovered 2 exits: [*Mat] / [*Min]) History --------- Turn | Location | Event 7 | -11/Scrapyard | Discovered new exit (range 15) 138 | -11/Scrapyard | Entered Materials 200 | -10/Materials | Discovered new exit (range 16) 305 | -10/Materials | Build established: Mutant 638 | -10/Materials | Derelicts attacked the area 866 | -10/Materials | Discovered new exit (range 4) 1085 | -10/Materials | Repaired Assault Rifle 1112 | -10/Materials | Repaired Grenade Launcher 1140 | -10/Materials | Repaired Lgt. Treads 1536 | -10/Materials | Discovered new exit (range 18) 1566 | -10/Materials | Entered another Materials area 1566 | -9/Materials | Evolved 2 slots: Propulsion x1, Utility x1 1590 | -9/Materials | Discovered new exit (range 12) 1953 | -9/Materials | Discovered new exit (range 10) 2271 | -9/Materials | Central database locked down 2464 | -9/Materials | Core integrity fell below 50% 2488 | -9/Materials | Lost 4 parts (1n1u2w) 2494 | -9/Materials | Core integrity fell below 20% 2519 | -9/Materials | Destroyed by G-34 Mercenary with Small Laser Last Messages --------------- 02271_ ALERT: Suspicious activity at Scanalyzer M001. Dispatching Investigation squad. 02303_ S-10 Pest destroyed. 02311_ Lgt. Ion Engine destroyed. 02312_ S-10 Pest destroyed. 02321_ G-34 Mercenary destroyed. 02325_ Acquired 10 matter. 02328_ R-06 Scavenger collects Lgt. Assault Rifle. 02331_ R-06 Scavenger collects Heat Sink. 02332_ Overheating: System interference. 02332_ Trap Scanner temporarily disabled. 02335_ R-06 Scavenger collects Lgt. Ion Engine. 02336_ Acquired 17 matter. 02341_ Lgt. Treads+ destroyed. 02407_ Hvy. Particle Cannon destroyed. 02425_ Lgt. Treads+ destroyed. 02431_ Trap Scanner destroyed. 02431_ R-06 Scavenger collects Flight Unit. 02457_ Hvy. Particle Cannon destroyed. Map ----- +----------------------------------------------------+ | ?????????????????????????????????????????????????? | | ?????????????????????????????????????????????????? | | ?????????????????????????????????????????????????? | | ?????????????????????????????????????????????????? | | ?????????????????????????????????????????????????? | | ?????????????????????????????????????????????????? | | ?????????????????????????? ????????????????????? | | ?????????????????????????? ????????????????????? | | ?????????????????????????# #???????????????????? | | ????????????????????????? ???????????????????? | | ????????????????????????? ???????????????????? | | ?????????????????????????? ????????????????????? | | ?????????????????????????? ????????????????????? | | ?????????????????????????? ????????????????????? | | ?????????????????????????? ????????????????????? | | ?????????????????????????? ????????????????????? | | ?????????????????????????? ????????????????????? | | ?????????????????????????? ????????????????????? | | ?????????????????????????? ????????????????????? | | ??????????????????????????# #????????????????????? | | ??????????????????????????# #????????????????????? | | ??????????????????????????# #????????????????????? | | ??????????????????????????# #????????????????????? | | ??????????????????????????# #????????????????????? | | ????????????????????????### #????????????????????? | | ????????????????????????#@# #????????????????????? | | ????????????????????????##gs##???????????????????? | | ?????????????????????######su#???????????????????? | | ?????????????????????#" =[gu#???????????????????? | | ?????????????????????## ""=#???????????????????? | | ??????????????????????# ""S #???????????????????? | | ??????????????????????# "" #???????????????????? | | ????????????????????? + #???????????????????? | | ?????????????????# ? # / #???????????????????? | | ?????????????????# ######+#######?????????????? | | ?????????????????# ! #??????????? ? | | ?????????????????+ !!]!= #??????????? | | ????????????" # !]%]* #??????????? | | ????????????" ### ########### #??????????? | | ??????????????????????# # #??????????? | | ??????????????????????# # #?????????## | | ??????????????????????# # #?????????# | | ??????????????????????# # #?????????# | | ??????????????????????# # #?????????+ | | ??????????????????????# ] # #?????????# | | ??????????????????????# # #?????????# | | ?????#############????# # #?????????# | | ?????# # #????# # #????#+#??# | | ?????#"" #????####+##### #????# #??# | | ?????#" #??????# ^ #????# #### | +----------------------------------------------------+ Best States ------------- Heat Dissipation 28 Energy Generation 10 Energy Capacity 125 Matter Stores 297 Matter Capacity 300 Sight Range 18 Terrain Scan Range 14 Terrain Scan Density 10 ECM Strength 1 Evasion (%) 40 Recoil Reduction 3 Item Schematics ----------------- Cesium-ion Thruster | -9/Materials | Scanalyzed Robot Schematics ------------------ None Fabricated ------------ Nothing Repaired ---------- Assault Rifle | 40% | -10/Materials Grenade Launcher | 66% | -10/Materials Lgt. Treads | 43% | -10/Materials Studied --------- Lgt. Treads | -9/Materials | Hacked Alien Tech Used ----------------- None Achievements -------------- Junior Dev Challenges ------------ None Game ------ Seed ElectrostormCoordinationFist Manual? 0 Play Time 00:24:47 Cumulative 9.5 hours Start 2026.03.18 @ 09:07:52 End 2026.03.18 @ 09:41:46 Sessions 1 Manual Loads 0 Difficulty Rogue Special Mode None Game No. 14 Rogue 1 Adventurer 2 Explorer 11 Win Type - Total 0 Types 0/0/0/0/0/0/0/0/0/0 Lore% 11 Gallery% 14 Achievement% 13 Wizard Run 0 Options --------- Layout 1 ASCII 0 Keyboard 0 Movement Numpad Keybinds 0 Fullscreen 2 Font 24/Smallcaps Map View 50x40 Zoom Use 0% Tactical HUD 1 Map Filters NONE Filters NONE Steam 1 RUN: 7cbb61e3-23ee-433d-b01c-02769b62c086